[Event "SixDays Budapest IM-A 09-2024"]
[Site "Budapest"]
[Date "2024.09.24"]
[Round "1.4"]
[White "Krishna C R G"]
[Black "Kwon, Sehyun"]
[Result "1-0"]
[ECO "D30"]
[WhiteElo "2425"]
[BlackElo "2248"]
[Annotator "TA"]
[PlyCount "101"]
[EventDate "2024.09.24"]
[EventType "tourn"]
[EventCountry "HUN"]
[SourceTitle "playchess.com"]
[Source "ChessBase"]
[SourceQuality "1"]
[TimeControl "5400+30"]

{[%evp 15,100,26,38,33,37,27,37,42,45,18,19,27,47,34,42,41,68,0,7,0,0,0,0,0,26,35,22,0,0,0,0,0,11,6,35,30,34,14,0,-16,12,4,32,22,6,11,24,17,34,30,60,20,42,2,13,0,37,46,73,70,337,388,362,372,356,356,586,439,573,439,668,365,1812,1423,2277,2095,29965,4100,29967,29969,29984,29970,29974,29975,29988,29989,29999]} 1. d4 {[%emt 0:00:03]} d5 {[%emt 0:00:15]} 2. c4 {[%emt 0:00:14]} e6 {[%emt 0:00:15]} 3. Nf3 {[%emt 0:00:06]} c6 {[%emt 0:00:40]} 4. e3 {[%emt 0:01:38]} f5 {[%emt 0:01:17]} 5. Bd3 {[%emt 0:02:11]} Nf6 {[%emt 0:01:27]} 6. O-O {[%emt 0:00:05]} Bd6 {[%emt 0:00:26]} 7. b3 {[%emt 0:07:03]} Qe7 {[%emt 0:00:42]} 8. Bb2 {[%emt 0:00:02]} O-O {[%emt 0:02:24]} 9. Nc3 {[%emt 0:00:09]} Ne4 {[%emt 0:09:09]} 10. Ne5 {[%emt 0:01:47]} Nxc3 {[%emt 0:08:23]} 11. Bxc3 {[%emt 0:00:03] White is slightly better.} Nd7 {[%emt 0:00:46]} 12. Qc2 {[%emt 0:04:04]} Nxe5 {[%emt 0:11:18]} 13. dxe5 {[%emt 0:00:05]} Bc5 {[%emt 0:00:59]} 14. Qd2 {[%emt 0:11:48]} Rd8 {[%emt 0:08:34]} 15. cxd5 {[%emt 0:00:04]} exd5 {[%emt 0:07:17]} 16. a4 {[%emt 0:18:34]} (16. b4 $14 Bb6 17. a4) 16... a5 $1 $11 {[%emt 0:08:32][%cal Ba7a5,Ba5b4][%mdl 32]} 17. Rfc1 {[%emt 0:13:37]} Bb4 {[%emt 0:03:03]} 18. Bxb4 {[%emt 0:02:31]} axb4 {[%emt 0:01:30]} 19. a5 {[%emt 0:09:00]} Bd7 {[%emt 0:04:22]} 20. Be2 {[%emt 0:08:04]} Rac8 {[%emt 0:11:51]} 21. a6 {[%emt 0:02:55]} bxa6 {[%emt 0:05:29]} 22. Rxa6 {[%emt 0:00:21]} Qxe5 {[%emt 0:04:36]} 23. Qxb4 {[%emt 0:00:01]} Qb2 {[%emt 0:00:32]} 24. Re1 {[%emt 0:00:02]} c5 {[%emt 0:03:41]} 25. Qb7 {[%emt 0:01:56]} Be8 {[%emt 0:00:11]} 26. Bf3 {[%emt 0:10:45]} (26. Rd6 $5 Bf7 27. Rxd8+ Rxd8 28. Qc7 $11) 26... Qe5 {[%emt 0:02:57]} 27. Raa1 {[%emt 0:03:50]} Rc7 {[%emt 0:01:16]} 28. Qb6 {[%emt 0:00:23]} Rdc8 {[%emt 0:00:28]} 29. h3 {[%emt 0:01:35]} Bf7 {[%emt 0:00:16]} 30. Red1 {[%emt 0:00:24]} g6 {[%emt 0:01:33]} 31. Ra5 {[%emt 0:00:27]} Rc6 {[%emt 0:00:51]} 32. Qb5 {[%emt 0:00:29]} Qd6 {[%emt 0:00:33]} 33. Qd3 {[%emt 0:01:47][%cal Rf3d5]} Rd8 {[%emt 0:00:33]} 34. Qc3 {[%emt 0:00:06]} Rc7 {[%emt 0:00:25]} 35. Ra4 {[%emt 0:01:15]} Qb6 {[%emt 0:00:33][%cal Od5d4]} 36. b4 {[%emt 0:00:33]} Qb5 {[%emt 0:00:49]} 37. Rda1 {[%emt 0:00:31]} d4 $2 {[%emt 0:00:20][%mdl 8192] [#] This move loses the game for Black.} (37... Rdc8 $14) 38. exd4 $18 {[%emt 0:00:20]} Rxd4 {[%emt 0:00:05]} 39. Ra8+ {[%emt 0:00:04]} Kg7 {[%emt 0:00:16]} 40. Qe3 {[%emt 0:00:27]} Rcd7 $2 {[%emt 0:01:07]} (40... Qd7 {was worth a try.} 41. Qe5+ Kh6) 41. Qe5+ {[%emt 0:00:03]} Kh6 {[%emt 0:00:09]} 42. bxc5 {[%emt 0:00:07][%cal Bb4c5,Bc5c6,Bc6c7][%mdl 32] [#] Black must now prevent Rb8.} (42. Qxc5 Qxb4 43. Qxb4 Rxb4 $16) 42... Qb2 {[%emt 0:01:06]} (42... Rc4 $142 43. Rc8 Qb4) 43. Re1 {[%emt 0:00:24] Hoping for c6.} Qc2 $2 {[%emt 0:00:33]} (43... Rb4 44. c6 Qxe5 45. Rxe5 Rc7) 44. c6 {[%emt 0:01:30]} Rd8 {[%emt 0:00:16]} 45. Ra7 {[%emt 0:01:02]} Re8 {[%emt 0:00:39]} 46. Re7 {[%emt 0:00:33]} (46. Qxd4 $142 Rxe1+ 47. Kh2 Qb3 48. Qd2+ g5 49. Qxe1 Qb8+ 50. c7 Qg8 51. Qe7) 46... Rxe7 {[%emt 0:00:34]} 47. Qxe7 {[%emt 0:00:02] White mates.} Qc3 {[%emt 0:00:29]} 48. c7 {[%emt 0:00:49]} Rc4 {[%emt 0:00:24]} 49. Qf8+ {[%emt 0:00:23]} (49. Qxf7 Qxe1+ 50. Kh2 Qe5+ 51. g3 Qc5 $19 (51... Qxc7 52. Qf8+ Qg7 53. Qe8 $17)) 49... Kg5 {[%emt 0:00:17]} 50. h4+ {[%emt 0:00:29]} ({Worse is} 50. Qxf7 Qxe1+ 51. Kh2 Qe5+ 52. g3 Rxc7 $17 (52... Qxc7 53. Qf8 $11)) 50... Kf6 {[%emt 0:00:18]} 51. Qh8# {[%emt 0:00:08] Weighted Error Value: White=0.25 (precise) /Black=0.60.  Loses game:     	---       	Black=1      Mistake:       	White=1     	Black=3      Inaccurate:     	White=4     	Black=8      OK:         	White=11    	Black=10     Best:        	White=4     	Black=2      Strong:       	---       	Black=1} 1-0

[Event "SixDays Budapest IM-A 09-2024"]
[Site "Budapest"]
[Date "2024.09.24"]
[Round "1.5"]
[White "Boyer, Mahel"]
[Black "Ramsdal, Jens Albert"]
[Result "1-0"]
[ECO "A05"]
[WhiteElo "2489"]
[BlackElo "2328"]
[Annotator "TA"]
[PlyCount "139"]
[EventDate "2024.09.24"]
[EventType "tourn"]
[EventCountry "HUN"]
[SourceTitle "playchess.com"]
[Source "ChessBase"]
[SourceQuality "1"]
[TimeControl "5400+30"]

{[%evp 11,139,-2,0,4,16,-6,18,-33,15,24,31,8,64,38,55,41,51,46,59,72,74,65,64,68,62,68,68,42,93,107,89,90,111,52,45,0,119,58,77,30,65,55,65,68,97,109,90,105,107,117,114,105,97,103,151,148,188,172,201,211,258,261,228,221,246,212,220,210,195,183,231,230,227,209,270,212,303,275,321,243,287,301,296,146,255,248,334,315,333,0,231,181,196,22,195,183,187,169,352,337,343,287,277,0,331,320,305,304,343,338,498,472,608,608,1050,969,1016,950,866,842,1217,1132,1079,943,1879,1496,1971,1831,1832,1708]} 1. Nf3 {[%emt 0:00:11]} Nf6 {[%emt 0:00:07]} 2. g3 {[%emt 0:00:12]} d5 {[%emt 0:00:57]} 3. Bg2 {[%emt 0:00:08]} e6 {[%emt 0:00:04]} 4. O-O {[%emt 0:00:11]} Be7 {[%emt 0:00:01]} 5. d4 {[%emt 0:00:12]} O-O {[%emt 0:00:06]} 6. a3 {[%emt 0:00:04]} Nbd7 {[%emt 0:05:20]} 7. c4 {[%emt 0:00:13]} dxc4 {[%emt 0:00:36]} 8. Qc2 {[%emt 0:03:16]} Nb6 {[%emt 0:08:05]} 9. Nc3 {[%emt 0:14:27]} (9. Nbd2 $11) 9... Nbd5 {[%emt 0:06:56]} (9... Bd7 $15) 10. Ne5 {[%emt 0:05:06]} Bd7 {[%emt 0:03:04]} 11. Nxc4 {[%emt 0:03:43]} Bc6 {[%emt 0:04:56]} (11... c5 $11) 12. e4 {[%emt 0:04:23]} Nxc3 {[%emt 0:00:19]} 13. bxc3 {[%emt 0:00:07]} Bb5 {[%emt 0:02:31]} 14. Qb3 {[%emt 0:04:24]} Bxc4 {[%emt 0:00:50]} 15. Qxc4 {[%emt 0:00:05]} c5 {[%emt 0:00:39]} 16. Rb1 {[%emt 0:05:20]} (16. dxc5 Rc8 $11) 16... b6 {[%emt 0:04:22]} 17. Rd1 {[%emt 0:00:48]} cxd4 {[%emt 0:01:32]} 18. cxd4 {[%emt 0:00:52]} Rc8 {[%emt 0:01:19]} 19. Qa6 {[%emt 0:01:53]} Rc7 {[%emt 0:00:06]} ({Black should try} 19... Qd7 $14) 20. Bf4 $16 {[%emt 0:03:34]} Rd7 {[%emt 0:00:32]} 21. Qa4 {[%emt 0:00:11]} Qc8 {[%emt 0:07:58]} 22. Rdc1 {[%emt 0:08:44]} (22. Rbc1 $16 Qd8 23. h3) 22... Qd8 $14 {[%emt 0:11:46]} 23. Rd1 {[%emt 0:06:33]} (23. Rc4 $14) 23... Qc8 $1 $16 {[%emt 0:01:25]} 24. Bf3 {[%emt 0:11:39]} (24. Rbc1 $16 Qe8 25. Bf3) 24... Rfd8 {[%emt 0:04:07]} 25. Be5 {[%emt 0:04:36]} (25. Rd3 $16) 25... Qb7 {[%emt 0:02:53]} 26. Re1 {[%emt 0:07:16][%cal Od4d5]} Ne8 {[%emt 0:00:54]} 27. d5 {[%emt 0:00:31] Black is weak on the light squares} f6 {[%emt 0:11:12]} 28. Bf4 {[%emt 0:03:31] White is much more active. This pair of bishops is nice.} (28. dxe6 $6 Rd3 29. Bf4 Rxf3 $11) 28... e5 {[%emt 0:00:10]} 29. Be3 {[%emt 0:00:08]} Rc7 {[%emt 0:01:49]} 30. Rec1 {[%emt 0:02:06]} Rxc1+ {[%emt 0:03:47]} 31. Rxc1 {[%emt 0:00:20]} (31. Bxc1 $6 Bc5 $14) 31... Qd7 {[%emt 0:00:23]} 32. Rc6 {[%emt 0:03:58]} Nd6 {[%emt 0:01:25]} (32... Kh8 $142 33. h4 Nd6) 33. Qc2 {[%emt 0:00:38]} Qe8 {[%emt 0:05:05]} 34. Bg4 {[%emt 0:00:39]} f5 {[%emt 0:02:48]} 35. exf5 {[%emt 0:00:09]} (35. Bxf5 Nxf5 36. exf5 Rxd5 $16) 35... Nb5 {[%emt 0:02:46]} 36. Qb3 {[%emt 0:00:21] [#] aiming for d6+.} Nd6 {[%emt 0:00:36]} 37. a4 {[%emt 0:00:40]} Kh8 {[%emt 0:00:26]} 38. Qc2 {[%emt 0:00:38]} Bf6 {[%emt 0:00:32] [#]} 39. a5 $1 {[%emt 0:01:51][%mdl 512]} bxa5 {[%emt 0:00:33]} 40. Qc5 {[%emt 0:00:10]} h5 {[%emt 0:02:04]} 41. Bh3 {[%emt 0:00:38]} (41. Rxd6 Rxd6 42. Bxh5 (42. Qxd6 hxg4 43. h4 gxh3 $11) 42... Qb8 $11) 41... Qd7 {[%emt 0:00:38]} 42. Qxa5 {[%emt 0:00:51]} (42. Qxa7 Qxa7 43. Bxa7 Nb5 $16) 42... Qb7 {[%emt 0:02:49]} 43. Qa2 {[%emt 0:02:14]} (43. Bxa7 $6 Ra8 44. Rxd6 Rxa7 $16) (43. Qxa7 $6 Qxa7 44. Bxa7 Nb5 $16) 43... a5 {[%emt 0:01:30]} (43... Qf7 $142 44. Qb3 (44. Qxa7 Qxd5 45. Qa4 Ne4 $16) (44. Bxa7 Nb5 $18) 44... Qd7) 44. Qxa5 $18 {[%emt 0:00:52]} Qb1+ {[%emt 0:00:13]} 45. Rc1 {[%emt 0:00:04]} Qe4 {[%emt 0:00:24]} 46. Bb6 {[%emt 0:01:16]} Rg8 {[%emt 0:01:38]} 47. Rd1 {[%emt 0:03:35]} (47. Qd2 $18 {has better winning chances. Hoping for Qd1.} Rc8 48. Rxc8+ Nxc8 49. Bc5) 47... Qc2 {[%emt 0:00:55]} (47... Nc4 $16 {is a better defense.} 48. Qc5 Rb8) 48. Qe1 {[%emt 0:00:40]} Ra8 {[%emt 0:00:41]} 49. Rc1 {[%emt 0:00:18]} Qd3 {[%emt 0:00:02]} 50. Rd1 $2 {[%emt 0:00:31]} ({Better is} 50. Bc7 $18 Qa3 51. Qd1) 50... Qc4 $2 {[%emt 0:00:18]} (50... Qc2 $11 {and Black stays safe.} 51. Rc1 Qd3) 51. Qe3 {[%emt 0:00:21]} Qc2 {[%emt 0:00:53]} 52. Qf3 {[%emt 0:00:16]} (52. Qc1 $18 Qb3 53. Qb1 Qxb1 54. Rxb1) 52... Kg8 $2 {[%emt 0:00:46]} (52... Nc4 $1 $11) 53. Be3 {[%emt 0:00:28][%cal Od1c1] Rc1! is the strong threat.} (53. Qxh5 Nc4 $11) 53... Rb8 {[%emt 0:00:17]} 54. Qxh5 {[%emt 0:00:39]} Rb1 {[%emt 0:00:01] Prevents Rc1} (54... Nc4) 55. Rxb1 {[%emt 0:00:13]} Qxb1+ {[%emt 0:00:01]} 56. Kg2 {[%emt 0:00:52]} Qd3 {[%emt 0:00:51]} 57. Kg1 $2 {[%emt 0:00:50]} (57. Bg4 $18) 57... Qxd5 $2 {[%emt 0:00:09][%mdl 8192]} (57... Qb1+ $1 $11 {and Black has nothing to worry.} 58. Bf1 Qxf5) 58. Qe2 {[%emt 0:00:24]} e4 {[%emt 0:00:21]} 59. g4 {[%emt 0:00:37][%cal Bg3g4,Bg4g5][%mdl 32]} Nc4 {[%emt 0:00:12]} 60. Bf4 {[%emt 0:00:25]} Ne5 {[%emt 0:00:57]} (60... Be5 {was worth a try.}) 61. Bg2 {[%emt 0:00:27] White is clearly winning.} Qd3 {[%emt 0:01:26]} 62. Qxd3 {[%emt 0:00:25]} ({Not} 62. Qxe4 Qd1+ 63. Bf1 Qxg4+ (63... Nf3+ $2 64. Kg2 $18) 64. Kh1 Nf3 $18) 62... exd3 {[%emt 0:00:02][%mdl 4096] Endgame. KBB-KBN} 63. g5 {[%emt 0:00:18]} d2 {[%emt 0:00:53]} 64. Bxd2 {[%emt 0:00:06]} (64. gxf6 $2 {is the wrong capture.} d1=Q+ (64... d1=B $2 {too greedy.} 65. Bxe5 gxf6 66. Bxf6 $18) 65. Bf1 Nf3+ (65... gxf6 $2 66. h3 $19) 66. Kg2 Nh4+ (66... gxf6 67. Bc4+ Kg7 68. Bf1 $19) 67. Kg1 gxf6 $19) 64... Be7 {[%emt 0:00:06]} 65. Bd5+ {[%emt 0:00:21]} Kf8 {[%emt 0:00:10]} 66. Kg2 {[%emt 0:00:13]} Bc5 {[%emt 0:00:43]} 67. f4 {[%emt 0:00:20]} Nd3 {[%emt 0:01:11]} 68. Kf3 {[%emt 0:00:16]} Nb4 {[%emt 0:00:18]} 69. Be4 {[%emt 0:00:08]} Na6 {[%emt 0:00:03]} 70. Bc3 {[%emt 0:00:06] Weighted Error Value: White=0.38/Black=0.43.  Loses game:     	---       	Black=3      Missed win:     	White=3     	---        Mistake:       	White=6     	Black=8      Inaccurate:     	White=2     	Black=4      OK:         	White=25    	Black=21     Best:        	White=5     	Black=1      Strong:       	---       	Black=1} 1-0

[Event "SixDays Budapest IM-A 09-2024"]
[Site "Budapest"]
[Date "2024.09.25"]
[Round "2.1"]
[White "Bashylina, Luisa"]
[Black "Ramsdal, Jens Albert"]
[Result "0-1"]
[ECO "D35"]
[WhiteElo "2124"]
[BlackElo "2328"]
[Annotator "RC"]
[PlyCount "96"]
[EventDate "2024.09.24"]
[EventType "tourn"]
[EventCountry "HUN"]
[SourceTitle "playchess.com"]
[Source "ChessBase"]
[SourceQuality "1"]
[TimeControl "5400+30"]

1. d4 {[%emt 0:00:04]} Nf6 {[%emt 0:00:19]} 2. c4 {[%emt 0:00:04]} e6 {[%emt 0:00:04]} 3. Nc3 {[%emt 0:00:04]} d5 {[%emt 0:00:04]} 4. cxd5 {[%emt 0:00:05]} exd5 {[%emt 0:00:04]} 5. Bg5 {[%emt 0:00:04]} c6 {[%emt 0:00:05]} 6. e3 {[%emt 0:00:10]} Bd6 {[%emt 0:00:06]} 7. Bd3 {[%emt 0:00:45]} O-O {[%emt 0:00:09]} 8. Nge2 {[%emt 0:00:28]} Re8 {[%emt 0:00:09]} 9. h3 {[%emt 0:00:07]} Nbd7 {[%emt 0:05:41]} 10. O-O {[%emt 0:00:51]} Nf8 {[%emt 0:00:14]} 11. Qc2 {[%emt 0:03:28]} Ng6 {[%emt 0:01:06]} 12. f3 {[%emt 0:10:27]} h6 {[%emt 0:09:27]} 13. Bxf6 {[%emt 0:04:45]} Qxf6 {[%emt 0:02:59]} 14. Nd1 {[%emt 0:07:18]} Nh4 {[%emt 0:04:22]} 15. f4 {[%emt 0:03:05]} Bf5 {[%emt 0:00:23]} 16. Ng3 {[%emt 0:09:13]} Bxd3 {[%emt 0:03:55]} 17. Qxd3 {[%emt 0:00:06]} Re6 {[%emt 0:05:58]} 18. Nf2 {[%emt 0:05:15]} Qg6 {[%emt 0:12:27]} 19. Qxg6 {[%emt 0:02:57]} Rxg6 {[%emt 0:01:57]} 20. Kh2 {[%emt 0:01:22]} Re8 {[%emt 0:02:17]} 21. Ng4 {[%emt 0:09:55]} Rge6 {[%emt 0:01:01]} 22. Rae1 {[%emt 0:04:38]} Kh7 {[%emt 0:08:05]} 23. Kh1 {[%emt 0:04:58]} Rg6 {[%emt 0:01:39]} 24. Kh2 {[%emt 0:03:02]} Rge6 {[%emt 0:03:48]} 25. Kh1 {[%emt 0:00:10]} f6 {[%emt 0:01:32]} 26. Re2 {[%emt 0:02:59]} h5 {[%emt 0:03:08]} 27. Nxh5 {[%emt 0:13:10]} Nf5 {[%emt 0:00:09]} 28. Ne5 {[%emt 0:00:31]} fxe5 {[%emt 0:07:52]} 29. fxe5 {[%emt 0:00:09]} Bxe5 {[%emt 0:00:32]} 30. dxe5 {[%emt 0:05:41]} Rxe5 {[%emt 0:01:03]} 31. g4 {[%emt 0:03:39]} Nd6 {[%emt 0:02:30]} 32. Rfe1 {[%emt 0:02:35]} Nc4 {[%emt 0:03:28]} 33. e4 {[%emt 0:03:01]} Nd6 {[%emt 0:00:20]} 34. Kg2 {[%emt 0:01:25]} Rxe4 {[%emt 0:03:17]} 35. Rxe4 {[%emt 0:00:22]} Rxe4 {[%emt 0:00:01]} 36. Rxe4 {[%emt 0:00:16]} Nxe4 {[%emt 0:00:01]} 37. Nf4 {[%emt 0:00:19]} g5 {[%emt 0:01:51]} 38. Ne6 {[%emt 0:00:45]} Kg6 {[%emt 0:00:22]} 39. Kf3 {[%emt 0:00:49]} Kf6 {[%emt 0:00:08]} 40. Nd4 {[%emt 0:00:14]} Nd6 {[%emt 0:00:44]} 41. b3 {[%emt 0:00:20]} c5 {[%emt 0:00:53]} 42. Ne2 {[%emt 0:01:10]} Ke5 {[%emt 0:00:11]} 43. a4 {[%emt 0:00:31]} Ne4 {[%emt 0:02:11]} 44. Ke3 {[%emt 0:00:35]} d4+ {[%emt 0:00:50]} 45. Kd3 {[%emt 0:00:09]} Nf2+ {[%emt 0:00:11]} 46. Kc4 {[%emt 0:00:03]} d3 {[%emt 0:01:34]} 47. Nc3 {[%emt 0:00:04]} d2 {[%emt 0:00:22]} 48. a5 {[%emt 0:01:33]} b6 {[%emt 0:00:11]} 0-1

[Event "SixDays Budapest IM-A 09-2024"]
[Site "Budapest"]
[Date "2024.09.25"]
[Round "2.2"]
[White "Kwon, Sehyun"]
[Black "Boyer, Mahel"]
[Result "0-1"]
[ECO "B12"]
[WhiteElo "2248"]
[BlackElo "2489"]
[Annotator "TA"]
[PlyCount "68"]
[EventDate "2024.09.24"]
[EventType "tourn"]
[EventCountry "HUN"]
[SourceTitle "playchess.com"]
[Source "ChessBase"]
[SourceQuality "1"]
[TimeControl "5400+30"]

{[%evp 9,68,18,38,29,41,33,44,15,24,13,20,0,-4,-20,-12,-21,-25,-21,-13,-12,-10,-18,-13,-25,-18,-68,-50,-84,-75,-152,-189,-150,-74,-79,-90,-112,-108,-164,-56,-225,-210,-278,-256,-700,-702,-1085,-1051,-1066,-1026,-1113,-1106,-1086,-1090,-1060,-1063,-1066,-1066,-960,-958,-829,-612]} 1. e4 {[%emt 0:00:24]} c6 {[%emt 0:01:44]} 2. d4 {[%emt 0:00:14]} d5 {[%emt 0:00:06]} 3. e5 {[%emt 0:00:45]} c5 {[%emt 0:00:16]} 4. Nf3 {[%emt 0:00:57]} Bg4 {[%emt 0:02:20]} 5. dxc5 {[%emt 0:01:02]} Nc6 {[%emt 0:00:04]} 6. c3 {[%emt 0:02:05]} e6 {[%emt 0:00:39]} 7. Be3 {[%emt 0:04:34]} a6 {[%emt 0:00:09]} 8. Nbd2 {[%emt 0:06:12] White is slightly better.} (8. Qb3 $5) 8... Nxe5 $1 {[%emt 0:00:36]} 9. Be2 {[%emt 0:03:35]} Nc6 {[%emt 0:00:06]} 10. Qa4 {[%emt 0:06:58]} Nf6 {[%emt 0:08:02]} 11. O-O {[%emt 0:18:10]} Be7 {[%emt 0:00:33]} 12. Rfe1 {[%emt 0:01:30]} O-O {[%emt 0:00:20]} 13. h3 {[%emt 0:03:47]} Bh5 {[%emt 0:03:58]} 14. b4 {[%emt 0:00:45]} (14. Rad1 {simplifies} h6 15. Nd4 Bxe2 16. Rxe2 Qd7 17. Nxc6 Qxc6 18. Qxc6 bxc6 19. Nf3) 14... Qc7 {[%emt 0:01:33]} 15. Rad1 {[%emt 0:01:30]} h6 {[%emt 0:08:41]} 16. Nd4 {[%emt 0:05:37]} Bg6 {[%emt 0:02:09]} 17. N2b3 {[%emt 0:08:22]} (17. Nxc6 $11 bxc6 18. c4 (18. Bxa6 $2 {too greedy.} Bd3 $19)) 17... Ne4 $1 $15 {[%emt 0:05:17]} 18. Rc1 {[%emt 0:00:39]} Bf6 {[%emt 0:04:55] Black is more active.} 19. c4 {[%emt 0:03:59] [#]} (19. Bf3 $142) 19... Nxd4 $1 $17 {[%emt 0:01:41]} 20. Bxd4 {[%emt 0:01:35]} Bxd4 {[%emt 0:07:57]} (20... e5 $142 21. Ba1 d4) 21. Nxd4 {[%emt 0:00:06]} e5 {[%emt 0:09:56]} 22. Nf3 {[%emt 0:01:23]} d4 {[%emt 0:00:05] ...a5 would now be deadly.} 23. Bd3 {[%emt 0:10:00]} (23. Qb3 $17 {keeps fighting.}) 23... f5 {[%emt 0:06:53]} ({Black should try} 23... Nc3 $19 24. Qc2 Bxd3 25. Qxd3 Nxa2) 24. Bxe4 $2 {[%emt 0:02:29] Now White is beyond hope.} (24. Nh4 $15 Bh7 25. Qc2 Nxc5 26. bxc5) 24... fxe4 $19 {[%emt 0:00:04]} 25. Nd2 {[%emt 0:00:10]} Rf4 {[%emt 0:06:19]} 26. g3 $2 {[%emt 0:03:47] [#]} (26. Qa3) 26... Rxf2 $3 {[%emt 0:00:09][%mdl 512] Black is clearly winning.} 27. Kxf2 {[%emt 0:05:19]} (27. Nxe4 Rf3) 27... e3+ {[%emt 0:00:09]} 28. Rxe3 {[%emt 0:02:16]} dxe3+ {[%emt 0:00:04]} 29. Kxe3 {[%emt 0:00:07]} Qd8 {[%emt 0:02:26]} 30. Qb3 {[%emt 0:01:22] Against Qd3+} Qd4+ {[%emt 0:07:22]} 31. Ke2 {[%emt 0:00:11]} Rd8 {[%emt 0:00:03]} 32. Qe3 {[%emt 0:02:23]} Bd3+ {[%emt 0:00:04]} 33. Kf2 {[%emt 0:00:07]} Rf8+ {[%emt 0:00:02]} 34. Nf3 {[%emt 0:00:18]} Be4 {[%emt 0:00:03] Weighted Error Value: White=0.51/Black=0.08 (flawless) .  Loses game:     	White=1     	---        Mistake:       	White=4     	Black=2      Inaccurate:     	White=3     	---        OK:         	White=4     	Black=11     Strong:       	---       	Black=3      Brilliant:      	---       	Black=1} (34... Bxc4 $2 {loses.} 35. Qxd4 exd4 36. Rxc4 $18) 0-1

[Event "SixDays Budapest IM-A 09-2024"]
[Site "Budapest"]
[Date "2024.09.25"]
[Round "2.3"]
[White "Bashirov, Kemal"]
[Black "Krishna C R G"]
[Result "0-1"]
[ECO "A46"]
[WhiteElo "2328"]
[BlackElo "2425"]
[Annotator "TA"]
[PlyCount "90"]
[EventDate "2024.09.24"]
[EventType "tourn"]
[EventCountry "HUN"]
[SourceTitle "playchess.com"]
[Source "ChessBase"]
[SourceQuality "1"]
[TimeControl "5400+30"]

{[%evp 18,90,20,10,30,30,41,56,59,28,43,-30,-10,-4,12,12,23,0,-14,-12,28,21,22,26,22,25,39,0,0,0,0,-42,-25,-24,0,-41,-37,-51,-48,-72,-73,-197,-198,-188,-181,-199,-208,-204,-204,-342,-319,-335,-322,-319,-277,-248,-80,-486,-445,-555,-556,-616,-634,-643,-660,-736,-743,-925,-650,-1554,-1452,-5289,-3800,-29995,-29996]} 1. d4 {[%emt 0:00:02]} Nf6 {[%emt 0:04:28]} 2. Nf3 {[%emt 0:00:17]} e6 {[%emt 0:00:53]} 3. Bf4 {[%emt 0:01:01]} c5 {[%emt 0:02:40]} 4. c3 {[%emt 0:01:45]} b6 {[%emt 0:00:12]} 5. e3 {[%emt 0:00:38]} Be7 {[%emt 0:00:11]} 6. h3 {[%emt 0:01:10]} Bb7 {[%emt 0:00:05]} 7. Nbd2 {[%emt 0:01:05]} O-O {[%emt 0:00:09]} 8. Bd3 {[%emt 0:00:29]} d6 {[%emt 0:00:37]} 9. O-O {[%emt 0:00:20]} Nbd7 {[%emt 0:07:55]} 10. Qe2 {[%emt 0:12:38]} a6 {[%emt 0:07:13]} 11. e4 {[%emt 0:08:43]} cxd4 {[%emt 0:08:55]} 12. cxd4 {[%emt 0:00:05]} Re8 {[%emt 0:00:14] White is slightly better.} 13. Rac1 {[%emt 0:07:06]} b5 {[%emt 0:10:27][%cal Oe6e5]} 14. b4 {[%emt 0:05:01] [#]} (14. Nb3 $14) 14... e5 $1 $11 {[%emt 0:15:18]} 15. Bg3 {[%emt 0:20:51]} (15. Bg5 exd4) 15... Bf8 {[%emt 0:11:24]} 16. d5 {[%emt 0:05:18]} Nh5 {[%emt 0:00:58]} 17. Nb3 {[%emt 0:01:18]} Qb6 {[%emt 0:02:19]} 18. Bh2 {[%emt 0:01:38]} g6 {[%emt 0:00:08]} 19. g4 {[%emt 0:09:39]} Nf4 {[%emt 0:06:23]} 20. Bxf4 {[%emt 0:00:06]} exf4 {[%emt 0:00:01]} 21. Qd2 {[%emt 0:00:44]} Ne5 {[%emt 0:00:02]} 22. Nxe5 {[%emt 0:01:52]} dxe5 {[%emt 0:00:01]} 23. Nc5 {[%emt 0:05:17]} Bc8 {[%emt 0:00:02]} 24. Qe2 {[%emt 0:01:39]} Qf6 {[%emt 0:02:21]} 25. f3 {[%emt 0:00:55]} Qh4 {[%emt 0:01:56]} 26. Qg2 {[%emt 0:01:08]} Bd6 {[%emt 0:04:16]} 27. Rfd1 {[%emt 0:01:12]} Kg7 {[%emt 0:00:51]} 28. Be2 {[%emt 0:00:56]} h5 {[%emt 0:00:49] Black keeps a firm grip on the game.} 29. Nd3 {[%emt 0:00:27]} (29. a3 $17) 29... hxg4 $19 {[%emt 0:00:02]} 30. hxg4 {[%emt 0:01:17]} Rh8 {[%emt 0:01:37]} 31. Rc6 {[%emt 0:01:37]} Qe7 {[%emt 0:00:01][%cal Oc8d7]} 32. Bf1 {[%emt 0:07:14]} Bd7 {[%emt 0:04:28]} (32... Bxb4 33. Qb2 Bd6 34. Rxd6 Qxd6 35. Nxe5 Qb6+ 36. Qd4 Qxd4+ 37. Rxd4 $15) 33. Rcc1 {[%emt 0:00:28]} (33. Rxd6 $142 Qxd6 34. Rc1) 33... a5 {[%emt 0:00:58]} (33... Bxb4 34. Nxb4 Qxb4 35. Qd2 $19) 34. a3 {[%emt 0:00:58]} axb4 {[%emt 0:00:02]} 35. axb4 {[%emt 0:00:06]} Ra3 {[%emt 0:00:02]} 36. Qb2 {[%emt 0:00:45]} Ra4 {[%emt 0:07:28]} (36... Bxg4 $19 37. Bg2 (37. Qxa3 $2 Bxf3 38. Rd2 Rh1+ 39. Kf2 Bxe4 $19) (37. fxg4 $2 Qh4 $19) 37... Rxd3 (37... Qa7+ 38. Qf2 $17) 38. Rxd3 Bd7) 37. Ra1 $2 {[%emt 0:01:02][%mdl 8192]} (37. Rc2 $17) 37... Rxb4 {[%emt 0:02:08]} ({Worse is} 37... Bxb4 38. Rxa4 (38. Nxe5 {gets mated.} Bc5+) 38... Bc5+ 39. Nxc5 Qxc5+ 40. Kg2 bxa4 41. Qxe5+ f6 42. Qxf4 $11) 38. Qf2 {[%emt 0:00:48]} (38. Nxb4 $2 {perishes.} Bc5+) 38... Ra4 {[%emt 0:00:39]} 39. Rdc1 {[%emt 0:00:34]} Rha8 {[%emt 0:00:32]} 40. Rab1 {[%emt 0:01:00]} Ra3 {[%emt 0:00:36]} 41. Be2 {[%emt 0:00:58] White is weak on the dark squares} b4 {[%emt 0:00:44]} 42. Nb2 {[%emt 0:00:49]} Rc3 {[%emt 0:00:46]} 43. Kg2 {[%emt 0:00:14]} Bc5 {[%emt 0:00:25]} 44. Qe1 {[%emt 0:00:03] [#]} Bxg4 $1 {[%emt 0:00:40][%mdl 512]} 45. Rxc3 {[%emt 0:00:35]} (45. fxg4 Rg3+) 45... Bh3+ {[%emt 0:00:30] Weighted Error Value: White=0.73/Black=0.22 (precise) .  Loses game:     	White=1     	---        Missed win:     	---       	Black=1      Mistake:       	White=3     	---        Inaccurate:     	White=5     	Black=1      OK:         	White=7     	Black=18} 0-1